Cogmind - Beta 12 @@@ ROGUE MODE // 2023.05.27 @ 00:58:26 Player: MoonDog Result: Self-destructed Performance ------------- Evolutions (7) 3500 Regions Visited (23) 4600 Robots Destroyed (96) 480 Value Destroyed (4397) 4397 Prototype IDs (22) 440 Alien Tech Used (0) 0 Bonus (5521) 5521 TOTAL SCORE: 18938 Bonus ------- High Alert Combat Kills 87 Follower Combat Kills 1982 Entered DSFs 500 Met Imprinter 300 Destroyed Z-Imprinter 1000 Triggered Deep Caves Wall 500 Exposed GOLEM Chamber 500 Built Enhanced Grunts 300 A7 Reached Mainframe 300 Met R17 at Cetus 500 Friendly Fire -448 Cogmind --------- Core Integrity 897/1300 Matter 295/300 Energy 866/1100 System Corruption 11% Temperature Cool (-200) Movement Treading (180) Location -3/Testing Parts ------- > --- POWER (2) -------- Assembled Flux Generator > --- PROPULSION (4) --- Improved Heavy Siege Treads Improved Heavy Siege Treads > --- UTILITY (13) ----- Advanced Cryofiber Web Assembled Nanovents Assembled Nanovents Assembled Nanovents Large Storage Unit Assembled Biocell Array Enhanced Optical Array Improved Signal Interpreter Assembled Combat Suite Assembled Alloy Armor Advanced Focal Shield (fused) GOLEM Unit > --- WEAPON (2) ------- Assembled Focal Cannon > --- INVENTORY (15) --- Advanced Power Amplifier Stasis Canceller Transmission Jammer Phase Shifter Advanced Phase Shifter Improved Focal Shield Advanced Shield Generator Advanced Hacking Suite Improved System Guard Dispersion Rifle Neutron Cannon Nova Cannon Hellfire Missile Launcher RU-N14's Throwing Claymores (7) Portable AFG (100) Peak State ------------ > --- POWER ------------ Assembled Flux Generator > --- PROPULSION ------- Improved Heavy Siege Treads Assembled Alloy Leg Assembled Alloy Leg > --- UTILITY ---------- Advanced Cryofiber Web Assembled Nanovents Assembled Nanovents Assembled Nanovents Large Storage Unit Assembled Biocell Array Enhanced Optical Array Improved Signal Interpreter Assembled Combat Suite Assembled Alloy Armor Advanced Focal Shield GOLEM Unit > --- WEAPON ----------- Assembled Focal Cannon Hellfire Missile Launcher > --- INVENTORY -------- Improved Fusion Compressor Advanced Power Amplifier Stasis Canceller Transmission Jammer Phase Shifter Advanced Phase Shifter Improved Focal Shield Advanced Shield Generator Advanced Hacking Suite Improved System Guard Dispersion Rifle Neutron Cannon Nova Cannon Hellfire Missile Launcher RU-N14's Throwing Claymores [Rating: 172] Favorites ----------- Power Assembled Flux Generator Engine Makeshift Power Source Power Core Light Nuclear Core Reactor Assembled Flux Generator Propulsion Assembled Alloy Leg Treads Improved Heavy Siege Treads Leg Assembled Alloy Leg Wheel Wheel Flight Unit Improved Cesium-ion Thruster Utility Assembled Nanovents Device Assembled Nanovents Storage Assembled Biocell Array Processor Advanced Visual Processing Unit Hackware System Shield Protection Assembled Alloy Armor Weapon Assembled Focal Cannon Energy Gun Pulse Rifle Energy Cannon Assembled Focal Cannon Ballistic Gun Assault Rifle Launcher Hellfire Missile Launcher Special Weapon RU-N14's Throwing Claymores Impact Weapon Makeshift Hammer Slashing Weapon Ripper Piercing Weapon CR-A16's Pointy Stick Build | -11 -10 -10 -10 -9 -8 -7 -7 -7 -7 -7 -6 -6 -6 -6 -6 -6 -5 -5 -5 -5 -4 -3 -3 ------- Run | Jun Mat Min Exi Min Mat Fac Low Low Zio Dee Pro Fac Ext Cet Arc Hub Fac Was Fac DSF Fac Res Tes Slots Evolved 14 | . . . . . 4 2 . . . . . 2 . . . . 2 . . . 2 2 . Power 1 | . . . . . . . . . . . . 1 . . . . . . . . . . . Propulsion 2 | . . . . . 1 1 . . . . . . . . . . . . . . . . . Utility 11 | . . . . . 3 1 . . . . . 1 . . . . 2 . . . 2 2 . Weapon . | . . . . . . . . . . . . . . . . . . . . . . . . Parts Attached 105 | 4 6 4 . 3 19 13 4 1 8 2 1 2 8 2 . 3 2 1 1 3 4 14 . Power 9 | . . . . 1 1 1 2 1 1 . . . . . . . . . . . . 2 . Engine 3 | . . . . 1 1 . . . 1 . . . . . . . . . . . . . . Core 6 | . . . . . . 1 2 1 . . . . . . . . . . . . . 2 . Reactor . | . . . . . . . . . . . . . . . . . . . . . . . . Propulsion 30 | 3 2 . . . 4 4 . . 1 . . . 8 . . 1 . . . 2 . 5 . Treads 4 | 2 . . . . . . . . . . . . . . . . . . . . . 2 . Leg 14 | . . . . . . . . . . . . . 8 . . 1 . . . 2 . 3 . Wheel 1 | 1 . . . . . . . . . . . . . . . . . . . . . . . Hover . | . . . . . . . . . . . . . . . . . . . . . . . . Flight 11 | . 2 . . . 4 4 . . 1 . . . . . . . . . . . . . . Utility 36 | . 2 . . 1 8 5 . . 3 1 . 2 . 1 . 1 2 . 1 1 4 4 . Device 23 | . 1 . . 1 4 4 . . 2 1 . 1 . . . . 1 . 1 1 4 2 . Storage 5 | . 1 . . . 2 . . . . . . . . 1 . 1 . . . . . . . Processor 5 | . . . . . 1 . . . . . . 1 . . . . 1 . . . . 2 . Hackware 3 | . . . . . 1 1 . . 1 . . . . . . . . . . . . . . Protection . | . . . . . . . . . . . . . . . . . . . . . . . . Artifact . | . . . . . . . . . . . . . . . . . . . . . . . . Weapon 30 | 1 2 4 . 1 6 3 2 . 3 1 1 . . 1 . 1 . 1 . . . 3 . Energy Gun 3 | . . . . . 2 . . . . . . . . . . . . 1 . . . . . Energy Cannon 3 | . . . . . 1 . . . . . . . . . . 1 . . . . . 1 . Ballistic Gun 7 | 1 1 2 . . 2 . 1 . . . . . . . . . . . . . . . . Ballistic Cannon . | . . . . . . . . . . . . . . . . . . . . . . . . Launcher 7 | . 1 2 . 1 1 . . . . . . . . . . . . . . . . 2 . Special Weapon 3 | . . . . . . . . . 2 . . . . 1 . . . . . . . . . Impact Weapon 3 | . . . . . . 2 1 . . . . . . . . . . . . . . . . Slashing Weapon 1 | . . . . . . . . . . 1 . . . . . . . . . . . . . Piercing Weapon 3 | . . . . . . 1 . . 1 . 1 . . . . . . . . . . . . Special Melee Weapon . | . . . . . . . . . . . . . . . . . . . . . . . . Unidentified Prototypes 12 | . . . . 1 1 1 . . 1 . . . . 1 . 2 . . . . 1 4 . Parts Lost 30 | . . . . . 1 4 . . . 4 . 1 2 2 1 . . . . 5 1 7 2 Power 3 | . . . . . 1 . . . . 1 . . . 1 . . . . . . . . . Propulsion 9 | . . . . . . 4 . . . 1 . 1 . . . . . . . 1 . 2 . Utility 9 | . . . . . . . . . . 2 . . . . . . . . . 3 1 3 . Weapon 9 | . . . . . . . . . . . . . 2 1 1 . . . . 1 . 2 2 Highest Loss Streak 3 | . . . . . 1 3 . . . 3 . 1 2 1 1 . . . . 3 1 3 1 To Critical Strikes 2 | . . . . . . . . . . . . . . 1 1 . . . . . . . . Average Slot Usage (%) 83 | . 56 71 71 72 88 84 84 84 91 77 76 84 84 85 86 85 87 85 82 87 87 85 80 Reactor 3 | . . . . . . . . . . . . 6 5 6 6 6 5 5 5 5 5 3 4 Leg 14 | . . . . . . . . . . . 12 13 24 26 26 26 23 20 17 22 21 13 . Flight 7 | . 15 28 28 28 26 24 15 15 22 22 15 11 . . . . . . . . . . . Device 19 | . 6 14 14 15 9 9 15 15 15 12 7 20 20 20 20 13 17 17 17 16 24 32 33 Storage 8 | . 7 14 14 9 15 13 7 7 7 7 10 8 6 6 6 12 11 11 11 11 10 9 9 Processor 9 | . . . . . 8 7 7 7 7 7 7 7 13 13 13 13 11 11 11 11 10 9 9 Hackware 2 | . . . . . 8 14 15 15 15 8 7 1 . . . . . . . . . . . Protection 1 | . . . . . . . . . . . . . . . . . 4 5 5 5 5 4 4 Energy Cannon 6 | . . . . . 1 . . . . . . 9 12 9 12 12 10 5 5 9 10 5 5 Ballistic Gun 1 | . 13 12 14 10 1 . 2 . . . . . . . . . . . . . . . . Naked Turns . | . . . . . . . . . . . . . . . . . . . . . . . . Heaviest Build 106 | 2 8 9 8 8 20 16 17 17 28 25 13 75 74 74 74 93 103 103 94 99 102 105 106 Greatest Support 150 | 3 8 8 8 8 24 21 20 20 28 28 14 60 96 96 96 104 104 104 88 106 111 150 150 Greatest Overweight (x) 1 | . . 1 . . . . . . . . . 1 1 . . . . 1 1 1 1 1 . Average Overweight (x) . | . . . . . . . . . . . . . . . . . . . 1 . . . . Largest Inventory Capacity 15 | 5 8 8 8 8 8 8 8 8 8 8 8 8 5 5 5 15 15 15 15 15 15 15 15 Average Capacity 9 | 5 6 8 8 7 7 8 8 8 8 8 8 5 5 5 5 14 15 15 15 15 15 15 15 Most Carried 15 | 2 6 8 8 8 8 8 8 8 8 8 8 8 5 5 5 7 10 11 12 12 15 15 15 Average Carried 8 | 1 4 7 8 7 6 7 8 7 7 7 7 5 5 4 4 5 8 10 11 10 14 14 14 Final Capacity 15 | 5 8 8 8 5 8 8 8 8 8 8 8 5 5 5 5 15 15 15 15 15 15 15 15 Final Carried 15 | 2 6 8 8 5 8 8 8 8 8 8 7 5 5 5 5 7 10 11 12 11 15 15 15 Class Distribution -------------------- 55% | Golem 17% | Commander-Golem 10% | Mutant 7% | Hacker-Sprinter 5% | Hacker-Mutant 3% | Sprinter Dominant Class ---------------- Mutant | -10/Materials Mutant | -10/Mines Mutant | -10/Exiles Mutant | -9/Mines Sprinter | -8/Materials Hacker-Sprinter | -7/Factory Hacker-Sprinter | -7/Lower Caves Hacker-Sprinter | -7/Lower Caves Hacker-Mutant | -7/Zion Mutant | -7/Deep Caves Golem | -6/Proximity Caves Golem | -6/Factory Golem | -6/Extension Commander-Golem | -6/Cetus Commander-Golem | -6/Archives Golem | -6/Hub_04(d) Golem | -5/Factory Golem | -5/Waste Golem | -5/Factory Golem | -5/DSF Golem | -4/Factory Golem | -3/Research Golem | -3/Testing Resources | -11 -10 -10 -10 -9 -8 -7 -7 -7 -7 -7 -6 -6 -6 -6 -6 -6 -5 -5 -5 -5 -4 -3 -3 ----------- Run | Jun Mat Min Exi Min Mat Fac Low Low Zio Dee Pro Fac Ext Cet Arc Hub Fac Was Fac DSF Fac Res Tes Matter Collected 2046 | 252 126 81 . 26 224 213 170 10 58 . . 47 36 60 . 38 20 . . 69 44 535 37 Remotely . | . . . . . . . . . . . . . . . . . . . . . . . . Salvage Created 5232 | 93 196 . . 33 1 58 234 74 . 40 . 421 1092 184 . 24 263 302 . 708 430 964 115 Parts 251 | 2 13 . . 6 . 8 5 2 . . . 16 56 11 . 1 16 3 . 37 14 52 9 Haulers Intercepted 1 | . . . . . . . . . . . . . . . . . . . . . 1 . . Recyclers Shooed 3 | . 1 . . . . . . . . . . . 1 . . . . . . . . 1 . Parts Field Recycled . | . . . . . . . . . . . . . . . . . . . . . . . . Retrieved Matter . | . . . . . . . . . . . . . . . . . . . . . . . . Parts Self-Destructed 5 | . . . . . . . 1 4 . . . . . . . . . . . . . . . Prevented . | . . . . . . . . . . . . . . . . . . . . . . . . Kills | -11 -10 -10 -10 -9 -8 -7 -7 -7 -7 -7 -6 -6 -6 -6 -6 -6 -5 -5 -5 -5 -4 -3 -3 ------- Run | Jun Mat Min Exi Min Mat Fac Low Low Zio Dee Pro Fac Ext Cet Arc Hub Fac Was Fac DSF Fac Res Tes Combat Hostiles Destroyed 76 | . 7 . . 4 . 1 . 1 . 1 . 6 13 7 . . 4 1 . 12 4 12 3 Melee 1 | . . . . . . . . 1 . . . . . . . . . . . . . . . Guns 6 | . 4 . . . . 1 . . . . . . . . . . . . . 1 . . . Cannons 58 | . . . . . . . . . . . . 6 12 5 . . 4 1 . 11 4 12 3 AOE 10 | . 3 . . 4 . . . . . 1 . . . 2 . . . . . . . . . Classes Destroyed 17 | 1 4 . . 1 . 2 1 1 . . . 2 1 . . . 1 1 . 1 1 . . Worker 4 | . 2 . . . . . . . . . . 1 . . . 1 . . . . . . . Builder 3 | . . . . 1 . . . . . . . . 1 . . . . . . . 1 . . Tunneler 1 | . . . . . . 1 . . . . . . . . . . . . . . . . . Hauler 1 | . . . . . . . . . . . . . . . . . . . . . 1 . . Recycler 2 | 1 . . . . . . . . . . . . 1 . . . . . . . . . . Operator 4 | . 1 . . . 1 . . . . . . . 1 . . . 1 . . . . . . Watcher 5 | . . . . . . 1 . . . . . 1 1 1 . . . . . . . 1 . Swarmer 21 | . 3 . . 4 . 1 . . . . . . . 5 . . . . . 5 . . 3 Grunt 19 | . 4 . . . . . . . . . . 3 3 1 . . 2 . . 3 3 . . Sentry 16 | . . . . . . . . . . . . 1 9 . . . . . . . 1 5 . Specialist 5 | . . . . . . . . . . . . 2 . . . . . . . 3 . . . Hunter 2 | . . . . . . . . . . . . . . . . . 2 . . . . . . Programmer 6 | . . . . . . . . 1 . . . . . . . . . . . . . 5 . Heavy 1 | . . . . . . . . . . . . . . . . . . . . 1 . . . Behemoth 3 | . . . . . . . . . . . . . 1 . . . . . . . . 2 . Compactor 1 | . . . . . . . . . . . . . . . . . . 1 . . . . . Cetus Guard 1 | . . . . . . . . . . . . . . 1 . . . . . . . . . Decomposer 1 | . . . . . . . . 1 . . . . . . . . . . . . . . . Samaritan 1 | . . . . . . . 1 . . . . . . . . . . . . . . . . Best Kill Streak 8 | 1 8 . . 5 1 2 . 1 . 1 . 2 3 4 . 1 2 1 . 8 3 4 3 Combat Bots Only 8 | . 7 . . 4 . 1 . 1 . 1 . 2 3 4 . . 2 1 . 8 3 4 3 Max Kills in Single Turn 3 | 1 2 . . 3 1 1 1 1 . 1 . 1 1 2 . 1 1 1 . 1 1 1 1 Gunslinging . | . . . . . . . . . . . . . . . . . . . . . . . . Exploded 2 | . 1 . . 2 . . . . . 1 . . . 1 . . . . . . . . . Melee 1 | . . . . . . . . 1 . . . . . . . . . . . . . . . Uniques/NPCs Destroyed 1 | . . . . . . . . . . 1 . . . . . . . . . . . . . Z-Imprinter (-7/Deep Caves) Combat | -11 -10 -10 -10 -9 -8 -7 -7 -7 -7 -7 -6 -6 -6 -6 -6 -6 -5 -5 -5 -5 -4 -3 -3 -------- Run | Jun Mat Min Exi Min Mat Fac Low Low Zio Dee Pro Fac Ext Cet Arc Hub Fac Was Fac DSF Fac Res Tes Damage Taken 9020 | . 196 12 . 39 325 372 17 14 17 760 41 337 1507 562 244 105 101 24 . 1086 366 2387 508 Core 1656 | . 78 . . 9 113 174 17 . 17 444 6 45 111 8 . . . . . 196 35 294 109 Absorbed by Shields 230 | . . . . . . . . . . . . . 30 154 . . 38 8 . . . . . Core Remaining (%) 72 | 100 . . . 65 79 . . . . . 6 . . . . 80 . . . 80 96 . . Volleys Fired 326 | 4 32 4 . 2 7 2 . . 5 4 . 25 51 27 9 8 8 4 . 39 14 75 6 Largest 2 | 1 1 1 . 1 2 1 . . 1 1 . 2 2 2 2 2 2 2 . 2 2 2 2 Hottest 138 | 20 30 30 . 30 126 63 . . . . . 50 50 50 50 50 50 90 . 90 50 138 50 Shots Fired 464 | 4 32 4 . 2 8 2 . . 5 4 . 41 93 48 10 16 15 8 . 45 28 90 9 Gun 45 | 4 28 . . . 5 2 . . . . . . . . . . . 4 . 2 . . . Cannon 386 | . . . . . . . . . . . . 41 93 45 10 16 15 4 . 43 28 82 9 Launcher 21 | . 4 4 . 2 3 . . . . . . . . . . . . . . . . 8 . Special 12 | . . . . . . . . . 5 4 . . . 3 . . . . . . . . . Kinetic 34 | 4 28 . . . 2 . . . . . . . . . . . . . . . . . . Thermal 397 | . . . . . 3 2 . . . . . 41 93 45 10 16 15 8 . 45 28 82 9 Explosive 33 | . 4 4 . 2 3 . . . 5 4 . . . 3 . . . . . . . 8 . Electromagnetic . | . . . . . . . . . . . . . . . . . . . . . . . . Robot Hit Streak 23 | 1 7 . . . 1 2 . . . 5 . 16 18 3 6 5 9 4 . 7 12 23 3 Robot Miss Streak 4 | 3 4 . . . 2 . . . . . . 2 2 3 1 1 1 3 . 3 2 2 3 Penetration Max . | . . . . . . . . . . . . . . . . . . . . . . . . Secondary Targets . | . . . . . . . . . . . . . . . . . . . . . . . . Shots Hit Robots 298 | 1 16 . . . 1 6 5 3 . 3 . 28 66 15 8 10 9 4 . 31 19 69 4 Core Hits 146 | 1 14 . . 5 1 4 1 2 . 4 . 12 24 14 1 1 7 2 . 14 10 26 3 Critical Kills . | . . . . . . . . . . . . . . . . . . . . . . . . Critical Parts Destroyed . | . . . . . . . . . . . . . . . . . . . . . . . . Critical Strikes 4 | . . . . . . . 1 . . 2 . 1 . . . . . . . . . . . Sever 2 | . . . . . . . . . . 2 . . . . . . . . . . . . . Impale 2 | . . . . . . . 1 . . . . 1 . . . . . . . . . . . Melee Attacks 43 | . . . . . . 12 7 6 5 12 . 1 . . . . . . . . . . . Impact 8 | . . . . . . 5 1 2 . . . . . . . . . . . . . . . Slashing 12 | . . . . . . . . . . 12 . . . . . . . . . . . . . Piercing 23 | . . . . . . 7 6 4 5 . . 1 . . . . . . . . . . . Sneak Attacks 6 | . . . . . . 2 2 1 . . . 1 . . . . . . . . . . . Combat Hostiles . | . . . . . . . . . . . . . . . . . . . . . . . . Follow-up Attacks 1 | . . . . . . . . 1 . . . . . . . . . . . . . . . Damage Inflicted 15472 | 15 444 . . 167 87 221 312 112 30 427 . 1282 3614 1383 399 497 468 151 . 1566 895 3219 183 Guns 393 | 15 213 . . . 13 32 . . . . . . . . . . . 59 . 61 . . . Cannons 12420 | . . . . . . . . . . . . 1213 3515 791 381 479 468 92 . 1492 877 2929 183 Explosions 1577 | . 231 . . 167 74 . . . 30 306 . . . 511 . . . . . . . 258 . Melee 682 | . . . . . . 189 312 112 . . . 69 . . . . . . . . . . . Ramming 198 | . . . . . . . . . . . . . 99 . 18 18 . . . 13 18 32 . Kinetic 241 | 15 213 . . . 13 . . . . . . . . . . . . . . . . . . Thermal 12572 | . . . . . . 32 . . . . . 1213 3515 791 381 479 468 151 . 1553 877 2929 183 Explosive 1577 | . 231 . . 167 74 . . . 30 306 . . . 511 . . . . . . . 258 . Electromagnetic . | . . . . . . . . . . . . . . . . . . . . . . . . Impact . | . . . . . . . . . . . . . . . . . . . . . . . . Slashing 202 | . . . . . . . . . . 121 . . . 81 . . . . . . . . . Piercing 682 | . . . . . . 189 312 112 . . . 69 . . . . . . . . . . . Highest Corruption 11 | . . . . . . . . . . . . . . . . 2 . 10 10 10 . 11 11 Average Corruption 8 | . . . . . . . . . . . . . . . . 2 . 5 10 8 . 8 11 Corruption Purged 2 | . . . . . . . . . . . . . . . . . . . . 2 . . . Corruption Blocked . | . . . . . . . . . . . . . . . . . . . . . . . . Effects 78 | . . . . . . . . . . . . . . . . 1 . 2 3 12 . 48 12 Message Errors 12 | . . . . . . . . . . . . . . . . . . 1 . 2 . 6 3 Matter Fused 22 | . . . . . . . . . . . . . . . . 1 . . 2 2 . 12 5 Heat Flow Errors 14 | . . . . . . . . . . . . . . . . . . 1 . 1 . 11 1 Energy Discharges 11 | . . . . . . . . . . . . . . . . . . . 1 4 . 4 2 Parts Fused 2 | . . . . . . . . . . . . . . . . . . . . . . 2 . Data Loss (minor) 5 | . . . . . . . . . . . . . . . . . . . . . . 5 . Data Loss (major) 5 | . . . . . . . . . . . . . . . . . . . . 1 . 4 . Misfires 1 | . . . . . . . . . . . . . . . . . . . . . . . 1 Alerts 1 | . . . . . . . . . . . . . . . . . . . . . . 1 . Weapon Failures 5 | . . . . . . . . . . . . . . . . . . . . 2 . 3 . Overload Shots . | . . . . . . . . . . . . . . . . . . . . . . . . Overflow Damage 893 | . . . . 1 . 31 234 36 . 19 . 41 188 31 12 59 . . . 41 . 200 . Projectiles 555 | . . . . . . . . . . . . 41 188 14 12 59 . . . 41 . 200 . Explosions 37 | . . . . 1 . . . . . 19 . . . 17 . . . . . . . . . Melee 301 | . . . . . . 31 234 36 . . . . . . . . . . . . . . . Knockbacks 2 | . . . . . . . . . . . . . 2 . . . . . . . . . . Impact 2 | . . . . . . . . . . . . . 2 . . . . . . . . . . Kinetic . | . . . . . . . . . . . . . . . . . . . . . . . . Secondary . | . . . . . . . . . . . . . . . . . . . . . . . . Self-Inflicted Damage 39 | . . 12 . . 27 . . . . . . . . . . . . . . . . . . Shots 2 | . . 1 . . 1 . . . . . . . . . . . . . . . . . . Rammed 1 | . . . . . . . . . . . . . . . . . . . . . . 1 . Targets Rammed 19 | . . . . . . . . . . . . . 7 . 2 3 . . . 3 2 2 . Kicked 18 | . . . . . . . . . . . . . 7 . 2 3 . . . 3 2 1 . Crushed . | . . . . . . . . . . . . . . . . . . . . . . . . Highest Temperature 243 | . 17 . . 1 60 8 . . . 2 . . . . . . . 73 . 97 12 243 . Average Temperature 54 | . 9 . . 1 22 4 . . . 2 . . . . . . . 50 . 42 12 101 . Received Heat Transfer 1697 | . 93 . . 6 144 102 . . . 87 . 63 280 18 54 . 30 . . 246 158 316 100 Siege Activations . | . . . . . . . . . . . . . . . . . . . . . . . . Robots Corrupted . | . . . . . . . . . . . . . . . . . . . . . . . . Combat Hostiles . | . . . . . . . . . . . . . . . . . . . . . . . . Parts Fried 1 | . . . . . . . . . . . . . 1 . . . . . . . . . . Impact Corruptions . | . . . . . . . . . . . . . . . . . . . . . . . . Robots Melted 2 | . . . . . . . . . . . . . 1 . . . . . . 1 . . . Combat Hostiles 1 | . . . . . . . . . . . . . 1 . . . . . . . . . . Parts Melted 6 | . . . . . . . . . . . . 1 1 . . . . . . 1 1 2 . Heat Transferred 7030 | . . . . . . 74 . . . . . 675 1787 450 225 250 250 124 . 874 500 1721 100 Parts Sabotaged . | . . . . . . . . . . . . . . . . . . . . . . . . Parts Stolen . | . . . . . . . . . . . . . . . . . . . . . . . . Parts Stripped . | . . . . . . . . . . . . . . . . . . . . . . . . Power Chain Reactions . | . . . . . . . . . . . . . . . . . . . . . . . . Missiles Intercepted . | . . . . . . . . . . . . . . . . . . . . . . . . Alert | -11 -10 -10 -10 -9 -8 -7 -7 -7 -7 -7 -6 -6 -6 -6 -6 -6 -5 -5 -5 -5 -4 -3 -3 ------- Run | Jun Mat Min Exi Min Mat Fac Low Low Zio Dee Pro Fac Ext Cet Arc Hub Fac Was Fac DSF Fac Res Tes Peak Influence 918 | 5 358 161 . 113 446 222 . . . . . 102 376 918 579 666 447 175 120 384 347 383 280 Initial 367 | . 3 139 . . 43 202 . . . . . . 49 205 367 202 306 156 120 87 201 76 199 Average 242 | . 188 157 . 29 184 115 . . . . . 26 142 612 526 459 340 166 120 249 216 226 224 Maximum Alert Level 3 | . 1 . . . 2 1 . . . . . . 1 3 2 2 2 . . 1 1 1 1 Low Security (%) 50 | 100 40 100 . 100 64 66 . . . . . 100 76 . . . . 100 100 47 23 47 46 Level 1 35 | . 59 . . . 30 33 . . . . . . 23 20 9 40 89 . . 52 76 52 53 Level 2 10 | . . . . . 4 . . . . . . . . 40 90 59 10 . . . . . . Level 3 3 | . . . . . . . . . . . . . . 39 . . . . . . . . . Level 4 . | . . . . . . . . . . . . . . . . . . . . . . . . Level 5 . | . . . . . . . . . . . . . . . . . . . . . . . . High Security . | . . . . . . . . . . . . . . . . . . . . . . . . Max Security . | . . . . . . . . . . . . . . . . . . . . . . . . Sterilizations 1 | . . . . . . . . . . . . . . . . . . . . 1 . . . Squads Dispatched 30 | . 2 . . . 5 3 . . . . . 1 2 2 . 2 4 . . 2 2 5 . Investigation 9 | . 1 . . . 3 1 . . . . . . . 2 . . 2 . . . . . . Extermination 4 | . . . . . . 1 . . . . . . . . . . . . . . 1 2 . Reinforcement 16 | . 1 . . . 2 1 . . . . . 1 2 . . 2 2 . . 2 1 2 . Assault 1 | . . . . . . . . . . . . . . . . . . . . . . 1 . Garrison . | . . . . . . . . . . . . . . . . . . . . . . . . Intercept . | . . . . . . . . . . . . . . . . . . . . . . . . Searches Triggered . | . . . . . . . . . . . . . . . . . . . . . . . . Construction Impeded . | . . . . . . . . . . . . . . . . . . . . . . . . Haulers Reinforced 1 | . . . . . . . . . . . . . . . . . 1 . . . . . . Active Scanning Responses . | . . . . . . . . . . . . . . . . . . . . . . . . Cargo Convoy Interrupts 1 | . . . . . . . . . . . . . . . . . . . . . . 1 . Stealth | -11 -10 -10 -10 -9 -8 -7 -7 -7 -7 -7 -6 -6 -6 -6 -6 -6 -5 -5 -5 -5 -4 -3 -3 --------- Run | Jun Mat Min Exi Min Mat Fac Low Low Zio Dee Pro Fac Ext Cet Arc Hub Fac Was Fac DSF Fac Res Tes Distress Signals 13 | . 2 . . . 1 . . . . . . . 4 2 . 4 . . . . . . . Communications Jammed . | . . . . . . . . . . . . . . . . . . . . . . . . Distress Signals . | . . . . . . . . . . . . . . . . . . . . . . . . Times Spotted 256 | . 20 . . 6 28 14 5 1 1 34 2 7 33 27 7 14 3 6 . 15 5 18 10 Peak Tracking Total 33 | . 6 . . 4 13 6 4 1 1 33 2 2 6 6 2 5 2 5 . 8 3 4 6 Tactical Retreats 20 | . 3 . . . 5 5 1 . . . . . 3 . . 1 . . . 2 . . . Traps | -11 -10 -10 -10 -9 -8 -7 -7 -7 -7 -7 -6 -6 -6 -6 -6 -6 -5 -5 -5 -5 -4 -3 -3 ------- Run | Jun Mat Min Exi Min Mat Fac Low Low Zio Dee Pro Fac Ext Cet Arc Hub Fac Was Fac DSF Fac Res Tes Traps Triggered 6 | . . . . . . 1 . . . . . . . . . 1 1 . . 2 . 1 . Indirectly . | . . . . . . . . . . . . . . . . . . . . . . . . Trap Hack Attempts . | . . . . . . . . . . . . . . . . . . . . . . . . Triggered . | . . . . . . . . . . . . . . . . . . . . . . . . Disarmed 8 | . . . . . . . . . . . . 4 4 . . . . . . . . . . Reprogrammed . | . . . . . . . . . . . . . . . . . . . . . . . . Reused . | . . . . . . . . . . . . . . . . . . . . . . . . Traps Extracted . | . . . . . . . . . . . . . . . . . . . . . . . . Installed . | . . . . . . . . . . . . . . . . . . . . . . . . Triggered 3 | . . . . . . . . . . . . . . . . . . . . . . 3 . Machines | -11 -10 -10 -10 -9 -8 -7 -7 -7 -7 -7 -6 -6 -6 -6 -6 -6 -5 -5 -5 -5 -4 -3 -3 ---------- Run | Jun Mat Min Exi Min Mat Fac Low Low Zio Dee Pro Fac Ext Cet Arc Hub Fac Was Fac DSF Fac Res Tes Machines Disabled 27 | . 1 . . . 3 . . . 3 2 . . 1 6 1 4 2 . . 1 1 1 1 Max in Single Turn 2 | . 1 . . . 2 . . . 1 1 . . 1 2 . 1 1 . . 1 1 1 1 Garrison Access 2 | . . . . . 1 . . . . . . . . . . . . . . . . 1 . Machines Repaired . | . . . . . . . . . . . . . . . . . . . . . . . . Machines Sabotaged . | . . . . . . . . . . . . . . . . . . . . . . . . Overloaded Fab Kills . | . . . . . . . . . . . . . . . . . . . . . . . . Hacking | -11 -10 -10 -10 -9 -8 -7 -7 -7 -7 -7 -6 -6 -6 -6 -6 -6 -5 -5 -5 -5 -4 -3 -3 --------- Run | Jun Mat Min Exi Min Mat Fac Low Low Zio Dee Pro Fac Ext Cet Arc Hub Fac Was Fac DSF Fac Res Tes Machines Accessed 44 | . 2 . . . 6 5 . . . . . 6 8 2 1 2 3 . 1 . 3 2 3 Terminals 32 | . 2 . . . 4 2 . . . . . 5 8 2 . 2 1 . 1 . 2 1 2 Fabricators 5 | . . . . . . 2 . . . . . . . . . . 1 . . . 1 1 . Repair Stations . | . . . . . . . . . . . . . . . . . . . . . . . . Recycling Units . | . . . . . . . . . . . . . . . . . . . . . . . . Scanalyzers 4 | . . . . . 1 1 . . . . . 1 . . . . 1 . . . . . . Garrison Access 2 | . . . . . 1 . . . . . . . . . . . . . . . . . 1 Total Hacks 129 | . 6 . . . 22 14 . . . . . 9 16 8 25 3 12 . 1 . 6 3 4 Successful 73 | . 3 . . . 11 8 . . . . . 7 7 2 25 2 6 . 1 . 1 . . Failed 56 | . 3 . . . 11 6 . . . . . 2 9 6 . 1 6 . . . 5 3 4 Catastrophic 14 | . 1 . . . 2 1 . . . . . 1 1 2 . . 2 . . . . 2 2 Database Lockouts . | . . . . . . . . . . . . . . . . . . . . . . . . Manual 35 | . 6 . . . 14 3 . . . . . 4 2 1 . 1 4 . . . . . . Terminals 78 | . 6 . . . 18 8 . . . . . 8 16 8 . 3 4 . 1 . 3 1 2 Fabricators 11 | . . . . . . 3 . . . . . . . . . . 3 . . . 3 2 . Repair Stations . | . . . . . . . . . . . . . . . . . . . . . . . . Recycling Units . | . . . . . . . . . . . . . . . . . . . . . . . . Scanalyzers 12 | . . . . . 3 3 . . . . . 1 . . . . 5 . . . . . . Garrison Access 3 | . . . . . 1 . . . . . . . . . . . . . . . . . 2 Terminal Hacks 46 | . . . . . 3 3 . . . . . 3 6 2 25 2 . . 1 . 1 . . Record 27 | . . . . . . . . . . . . . . 2 25 . . . . . . . . Prototype ID Bank 1 | . . . . . 1 . . . . . . . . . . . . . . . . . . Open Door 5 | . . . . . . . . . . . . 1 4 . . . . . . . . . . Open DSF 3 | . . . . . . . . . . . . 1 . . . . . . 1 . 1 . . Branch Access Points 3 | . . . . . . 1 . . . . . . 1 . . 1 . . . . . . . Alert Level 1 | . . . . . 1 . . . . . . . . . . . . . . . . . . Unreport Threat 3 | . . . . . 1 2 . . . . . . . . . . . . . . . . . Disarm Traps 2 | . . . . . . . . . . . . 1 1 . . . . . . . . . . Recall Reinforcements 1 | . . . . . . . . . . . . . . . . 1 . . . . . . . Fabricator Hacks 4 | . . . . . . 3 . . . . . . . . . . 1 . . . . . . Load Schematic 2 | . . . . . . 1 . . . . . . . . . . 1 . . . . . . Build 2 | . . . . . . 2 . . . . . . . . . . . . . . . . . Repair Station Hacks . | . . . . . . . . . . . . . . . . . . . . . . . . Recycling Unit Hacks . | . . . . . . . . . . . . . . . . . . . . . . . . Scanalyzer 7 | . . . . . 2 2 . . . . . 1 . . . . 2 . . . . . . Insert Component 5 | . . . . . 1 1 . . . . . 1 . . . . 2 . . . . . . Analyze 2 | . . . . . 1 1 . . . . . . . . . . . . . . . . . Garrison Access Hacks 1 | . . . . . 1 . . . . . . . . . . . . . . . . . . Seal Access 1 | . . . . . 1 . . . . . . . . . . . . . . . . . . Unauthorized Hacks 15 | . 3 . . . 5 . . . . . . 3 1 . . . 3 . . . . . . Terminals 15 | . 3 . . . 5 . . . . . . 3 1 . . . 3 . . . . . . Track 2 | . . . . . . . . . . . . 1 . . . . 1 . . . . . . Assimilate 1 | . . . . . . . . . . . . . . . . . 1 . . . . . . Botnet 10 | . 2 . . . 4 . . . . . . 2 1 . . . 1 . . . . . . Operators 2 | . 1 . . . 1 . . . . . . . . . . . . . . . . . . Fabricators . | . . . . . . . . . . . . . . . . . . . . . . . . Repair Stations . | . . . . . . . . . . . . . . . . . . . . . . . . Recycling Units . | . . . . . . . . . . . . . . . . . . . . . . . . Scanalyzers . | . . . . . . . . . . . . . . . . . . . . . . . . Garrison Access . | . . . . . . . . . . . . . . . . . . . . . . . . Data Cores Recovered . | . . . . . . . . . . . . . . . . . . . . . . . . Used . | . . . . . . . . . . . . . . . . . . . . . . . . Hacking Detections 32 | . 2 . . . 5 4 . . . . . 4 4 2 . 1 3 . . . 2 2 3 Full Trace Events 10 | . 2 . . . 3 1 . . . . . . . 2 . . 2 . . . . . . Feedback Events . | . . . . . . . . . . . . . . . . . . . . . . . . Feedback Blocked . | . . . . . . . . . . . . . . . . . . . . . . . . Robot Schematics Acquired . | . . . . . . . . . . . . . . . . . . . . . . . . Robots Built . | . . . . . . . . . . . . . . . . . . . . . . . . Authchips . | . . . . . . . . . . . . . . . . . . . . . . . . Time 134 | . . . . . . 134 . . . . . . . . . . . . . . . . . Total Robot Build Rating . | . . . . . . . . . . . . . . . . . . . . . . . . Part Schematics Acquired 1 | . . . . . . 1 . . . . . . . . . . . . . . . . . Parts Built 1 | . . . . . . 1 . . . . . . . . . . . . . . . . . Authchips . | . . . . . . . . . . . . . . . . . . . . . . . . Time 204 | . . . . . . 204 . . . . . . . . . . . . . . . . . Total Part Build Rating 8 | . . . . . . 8 . . . . . . . . . . . . . . . . . Parts Repaired . | . . . . . . . . . . . . . . . . . . . . . . . . Time . | . . . . . . . . . . . . . . . . . . . . . . . . Parts Recycled . | . . . . . . . . . . . . . . . . . . . . . . . . Recycled Matter . | . . . . . . . . . . . . . . . . . . . . . . . . Retrieved Matter . | . . . . . . . . . . . . . . . . . . . . . . . . Retrieved Components . | . . . . . . . . . . . . . . . . . . . . . . . . Parts Scanalyzed 2 | . . . . . 1 . . . . . . . . . . . 1 . . . . . . Part Schematics Acquired 1 | . . . . . . 1 . . . . . . . . . . . . . . . . . Parts Damaged . | . . . . . . . . . . . . . . . . . . . . . . . . Bothacking | -11 -10 -10 -10 -9 -8 -7 -7 -7 -7 -7 -6 -6 -6 -6 -6 -6 -5 -5 -5 -5 -4 -3 -3 ------------ Run | Jun Mat Min Exi Min Mat Fac Low Low Zio Dee Pro Fac Ext Cet Arc Hub Fac Was Fac DSF Fac Res Tes Used RIF Installer . | . . . . . . . . . . . . . . . . . . . . . . . . Robots Hacked . | . . . . . . . . . . . . . . . . . . . . . . . . Non-combat . | . . . . . . . . . . . . . . . . . . . . . . . . Combat . | . . . . . . . . . . . . . . . . . . . . . . . . Robot Hacks Applied . | . . . . . . . . . . . . . . . . . . . . . . . . Relay Couplers Released 1 | . . . . . . . . . . . . . . . . . . . . . . 1 . Machine Destruction 1 | . . . . . . . . . . . . . . . . . . . . . . 1 . Fabnet Peak Effective % . | . . . . . . . . . . . . . . . . . . . . . . . . Robots Rewired 17 | . . . . . . . . . . . . . 17 . . . . . . . . . . Allies Hacked . | . . . . . . . . . . . . . . . . . . . . . . . . Hacks Repelled . | . . . . . . . . . . . . . . . . . . . . . . . . Allies | -11 -10 -10 -10 -9 -8 -7 -7 -7 -7 -7 -6 -6 -6 -6 -6 -6 -5 -5 -5 -5 -4 -3 -3 -------- Run | Jun Mat Min Exi Min Mat Fac Low Low Zio Dee Pro Fac Ext Cet Arc Hub Fac Was Fac DSF Fac Res Tes Total Allies 30 | . . 2 . . . . . . . . . . 22 5 . . . 1 . . . . . Largest Group 11 | . . 2 . . . . . . . . . . 11 8 5 5 . 1 . . . . . Highest-Rated Group 636 | . . 38 . . . . . . . . . . 406 636 466 466 . 31 . . . . . Highest-Rated Ally 159 | . . 31 . . . . . . . . . . 159 159 96 96 . 31 . . . . . Total Orders . | . . . . . . . . . . . . . . . . . . . . . . . . Ally Attacks 283 | . . . . . . . . . . . . . 100 100 23 56 . 4 . . . . . Total Damage 8786 | . . . . . . . . . . . . . 2315 3090 883 2416 . 82 . . . . . Kills 52 | . . . . . . . . . . . . . 17 19 4 12 . . . . . . . Allies Corrupted . | . . . . . . . . . . . . . . . . . . . . . . . . Allies Melted 1 | . . . . . . . . . . . . . 1 . . . . . . . . . . Intel | -11 -10 -10 -10 -9 -8 -7 -7 -7 -7 -7 -6 -6 -6 -6 -6 -6 -5 -5 -5 -5 -4 -3 -3 ------- Run | Jun Mat Min Exi Min Mat Fac Low Low Zio Dee Pro Fac Ext Cet Arc Hub Fac Was Fac DSF Fac Res Tes Robot Analysis Total . | . . . . . . . . . . . . . . . . . . . . . . . . Derelict Logs Recovered 4 | . . 1 . 1 . . 1 1 . . . . . . . . . . . . . . . Drone Launches . | . . . . . . . . . . . . . . . . . . . . . . . . Drone Recoveries . | . . . . . . . . . . . . . . . . . . . . . . . . Exploration | -11 -10 -10 -10 -9 -8 -7 -7 -7 -7 -7 -6 -6 -6 -6 -6 -6 -5 -5 -5 -5 -4 -3 -3 ------------- Run | Jun Mat Min Exi Min Mat Fac Low Low Zio Dee Pro Fac Ext Cet Arc Hub Fac Was Fac DSF Fac Res Tes Turns Passed 9751 | 65 219 173 210 115 285 397 135 154 526 168 462 675 1555 788 385 280 318 118 62 267 524 1584 286 Spaces Moved 9307 | 92 340 398 568 279 705 937 334 431 1363 337 229 291 706 468 191 178 156 67 33 91 296 716 101 Core 202 | 92 110 . . . . . . . . . . . . . . . . . . . . . . Treads 160 | . . . . . . . . . . . . . . . . . . . . . . 59 101 Legs 3134 | . . . . . . . . . . . . 291 706 468 191 178 156 67 33 91 296 657 . Wheels . | . . . . . . . . . . . . . . . . . . . . . . . . Hover . | . . . . . . . . . . . . . . . . . . . . . . . . Flight 5811 | . 230 398 568 279 705 937 334 431 1363 337 229 . . . . . . . . . . . . Fastest Speed 26 | 50 37 37 37 37 29 26 32 32 32 35 62 150 135 135 135 135 135 135 183 127 112 127 180 Average Speed 75 | 50 41 38 37 37 29 31 32 32 34 35 62 176 140 135 135 135 135 155 183 166 133 163 180 Slowest Speed 183 | 50 50 117 37 37 37 32 32 32 35 42 62 180 180 135 135 135 135 183 183 183 183 183 180 Overloaded Moves . | . . . . . . . . . . . . . . . . . . . . . . . . Propulsion Burnouts . | . . . . . . . . . . . . . . . . . . . . . . . . Robots Hopped 50 | . 4 5 . 1 15 21 . . . 2 2 . . . . . . . . . . . . Cave-ins Triggered . | . . . . . . . . . . . . . . . . . . . . . . . . Exploration Rate (%) 51 | 4 57 81 91 65 55 16 56 59 88 74 57 11 80 90 98 23 6 76 2 89 7 19 21 Regions Visited 23 Branch Regions 13 Pre-discovered Areas 4 | . . 2 . . . . . . 2 . . . . . . . . . . . . . . Known Exits Taken 10 | . . . . . 1 1 . . . . . 1 1 1 1 1 . . 1 . 1 1 . Unknown Exits Taken 10 | 1 1 1 1 1 . . 1 1 1 1 1 . . . . . . . . . . . . Scrap Searched 10 | . . 1 . 1 . . 2 2 4 . . . . . . . . . . . . . . Spaces Dug 89 | . . 26 . . . 5 1 . . 10 . 7 . . . . . . . . . 40 . Terrain Destroyed 373 | . 9 26 . 18 15 5 1 . 20 11 . 10 16 60 1 3 3 3 . 7 6 156 3 Melee 16 | . . . . . . 5 1 . . 10 . . . . . . . . . . . . . Projectile 76 | . . . . . . . . . . . . 10 16 10 1 3 3 3 . 7 6 14 3 AOE 281 | . 9 26 . 18 15 . . . 20 1 . . . 50 . . . . . . . 142 . Terrain Rammed . | . . . . . . . . . . . . . . . . . . . . . . . . Walls Destroyed . | . . . . . . . . . . . . . . . . . . . . . . . . Machines Disabled . | . . . . . . . . . . . . . . . . . . . . . . . . Actions | -11 -10 -10 -10 -9 -8 -7 -7 -7 -7 -7 -6 -6 -6 -6 -6 -6 -5 -5 -5 -5 -4 -3 -3 --------- Run | Jun Mat Min Exi Min Mat Fac Low Low Zio Dee Pro Fac Ext Cet Arc Hub Fac Was Fac DSF Fac Res Tes Total 11440 | 105 380 406 567 289 759 1000 351 441 1401 360 546 414 1180 577 308 202 250 74 34 157 400 1041 198 Wait 1427 | . . 4 . . 24 40 4 3 2 3 319 85 284 77 105 5 80 . . 20 75 209 88 Move 9192 | 91 331 387 567 276 676 899 333 430 1362 332 224 290 705 467 190 177 156 66 32 90 295 715 101 Hop 43 | . 4 5 . 1 13 16 . . . 2 2 . . . . . . . . . . . . Pick Up 50 | 3 5 2 . 1 7 10 . 1 8 1 . 1 . 1 . 1 1 1 1 1 2 2 1 Fast Attach 48 | 4 3 . . . 6 2 3 . 3 1 . 1 3 1 . 3 1 1 . 2 3 11 . Attach 18 | . 1 . . 2 4 6 . . . . 1 1 . 1 . . . . . 1 . 1 . Detach 57 | 1 . . . 2 4 2 . . . . . 5 3 2 1 5 3 2 . 1 7 18 1 Swap 39 | . 2 4 . 1 9 5 1 1 5 1 . . 5 . . . 1 . 1 . 1 2 . Drop 66 | 2 2 . . 4 9 6 4 2 11 4 . 5 7 1 1 . . . . . 1 6 1 Fire 326 | 4 32 4 . 2 7 2 . . 5 4 . 25 51 27 9 8 8 4 . 39 14 75 6 Melee 40 | . . . . . . 12 6 4 5 12 . 1 . . . . . . . . . . . Ram . | . . . . . . . . . . . . . . . . . . . . . . . . Kick 18 | . . . . . . . . . . . . . 7 . 2 3 . . . 3 2 1 . Crush 1 | . . . . . . . . . . . . . . . . . . . . . . 1 . Escape Stasis 2 | . . . . . . . . . . . . . 2 . . . . . . . . . . Rewire 113 | . . . . . . . . . . . . . 113 . . . . . . . . . . Trap . | . . . . . . . . . . . . . . . . . . . . . . . . Miscellaneous . | . . . . . . . . . . . . . . . . . . . . . . . . Route ------- -11/Junkyard -10/Materials (discovered 2 exits: [*Mat] / [*Min]) -10/Mines (discovered 2 exits: [*Mat] / *Exi) -10/Exiles (discovered 2 exits: [*Min x2]) -9/Mines -8/Materials -7/Factory (discovered 4 exits: *Fac / Sto / *Low x2) -7/Lower Caves -7/Lower Caves (discovered 2 exits: *Fac / *Zio) -7/Zion (discovered 2 exits: [*Dee] / [*Pro]) -7/Deep Caves -6/Proximity Caves -6/Factory (discovered 3 exits: Low x2 / *Ext) -6/Extension (discovered 3 exits: *Fac x2 / *Cet) -6/Cetus (discovered 2 exits: *Fac / *Arc) -6/Archives (discovered 3 exits: *Fac / *Hub x2) -6/Hub_04(d) -5/Factory -5/Waste -5/Factory -5/DSF -4/Factory -3/Research -3/Testing History --------- Turn | Location | Event 18 | -11/Junkyard | Discovered new exit (range 15) 66 | -11/Junkyard | Entered Materials 103 | -10/Materials | Discovered new exit (range 8) 160 | -10/Materials | Discovered new exit (range 8) 175 | -10/Materials | Destroyed 7 combat bots 285 | -10/Materials | Entered Mines 309 | -10/Mines | Found a damaged Exp. Sensor Array with a note attached 309 | -10/Mines | Found Prototype Device 317 | -10/Mines | Discovered new exit (range 12) 319 | -10/Mines | Learned location of Storage (-7) 321 | -10/Mines | Build established: Mutant 355 | -10/Mines | Met a Derelict bent on vengeance 432 | -10/Mines | Learned location of Zion (-7) 456 | -10/Mines | Deemed a non-threat by the Exiles lab entrance 456 | -10/Mines | Discovered new exit (range 6) 458 | -10/Mines | Entered Exiles 458 | -10/Exiles | Found Exiles lab abandoned 614 | -10/Exiles | Discovered new exit (range 15) 665 | -10/Exiles | Discovered new exit (range 12) 668 | -10/Exiles | Entered Mines 737 | -9/Mines | Learned location of 1 exit from Materials 738 | -9/Mines | Discovered new exit (range 12) 761 | -9/Mines | Identified Exp. Sensor Array 783 | -9/Mines | Entered Materials 783 | -8/Materials | Evolved 4 slots: Propulsion x1, Utility x3 784 | -8/Materials | Identified exit to Factory 1064 | -8/Materials | Build established: Sprinter 1068 | -8/Materials | Entered Factory 1068 | -7/Factory | Evolved 2 slots: Propulsion x1, Utility x1 1077 | -7/Factory | Discovered new exit (range 10) 1157 | -7/Factory | Identified exit to Storage 1157 | -7/Factory | Identified exit to Lower Caves 1300 | -7/Factory | Lost 3 parts (3n) 1355 | -7/Factory | Fabricated Exp. Sensor Array? 1401 | -7/Factory | Build established: Hacker-Sprinter 1465 | -7/Factory | Entered Lower Caves 1542 | -7/Lower Caves | Encountered a Warlord checkpoint 1581 | -7/Lower Caves | Discovered new exit (range 13) 1586 | -7/Lower Caves | Learned Factory trap positions 1600 | -7/Lower Caves | Entered another Lower Caves area 1616 | -7/Lower Caves | Discovered new exit (range 9) 1715 | -7/Lower Caves | Discovered new exit (range 13) 1719 | -7/Lower Caves | Encountered a Warlord checkpoint 1724 | -7/Lower Caves | Learned 12 Factory zone layouts 1754 | -7/Lower Caves | Entered Zion 1775 | -7/Zion | Found Prototype Device 1787 | -7/Zion | Discovered new exit (range 12) 1832 | -7/Zion | Learned location of Warlord (-4) 1837 | -7/Zion | Found Prototype Special Weapon 1837 | -7/Zion | Identified RU-N14's Throwing Claymores 1840 | -7/Zion | Found RU-N14's Throwing Claymores 1844 | -7/Zion | Found RU-N14's Throwing Claymores 1845 | -7/Zion | Found RU-N14's Throwing Claymores 1869 | -7/Zion | Found CR-A16's Pointy Stick 1892 | -7/Zion | Received a visual enhancement algorithm 1957 | -7/Zion | Learned location of Recycling (-7) 2032 | -7/Zion | Given the Hacking Drone Bay 2085 | -7/Zion | Build established: Hacker-Mutant 2264 | -7/Zion | Discovered new exit (range 5) 2264 | -7/Zion | Saw the warning signs outside the Deep Caves entrance 2273 | -7/Zion | Attacked by Zionites 2280 | -7/Zion | Entered Deep Caves 2313 | -7/Deep Caves | Attacked by Z-Imprinter 2317 | -7/Deep Caves | Destroyed Z-Imprinter 2336 | -7/Deep Caves | Z-Facility disabled 2371 | -7/Deep Caves | Spotted as-21312 2413 | -7/Deep Caves | Triggered Deep Caves wall 2414 | -7/Deep Caves | Exposed GOLEM chamber 2417 | -7/Deep Caves | Core integrity fell below 50% 2417 | -7/Deep Caves | Found GOLEM Unit 2421 | -7/Deep Caves | Found GOLEM Unit 2433 | -7/Deep Caves | Core integrity fell below 20% 2446 | -7/Deep Caves | Discovered new exit (range 6) 2448 | -7/Deep Caves | Entered Proximity Caves 2463 | -6/Proximity Caves | Lost 3 parts (1p1n1u) 2880 | -6/Proximity Caves | Attracted the attention of an 0b10 checkpoint 2881 | -6/Proximity Caves | Build established: Golem 2901 | -6/Proximity Caves | Discovered new exit (range 15) 2910 | -6/Proximity Caves | Entered Factory 2910 | -6/Factory | Evolved 2 slots: Power x1, Utility x1 2911 | -6/Factory | Identified exit to Lower Caves 2911 | -6/Factory | Identified exit to Extension 2912 | -6/Factory | Loaded intel: 113 trap records 3585 | -6/Factory | Entered Extension 3896 | -6/Extension | Rescued a captive Derelict 4165 | -6/Extension | Spotted B-75 Beast 4193 | -6/Extension | Spotted B-75 Beast 4201 | -6/Extension | Allies destroyed B-75 Beast 4537 | -6/Extension | Destroyed B-75 Beast 4560 | -6/Extension | Discovered new exit (range 3) 4562 | -6/Extension | Identified exit to Factory 4714 | -6/Extension | Rescued A7 4914 | -6/Extension | Rescued a captive Derelict 4990 | -6/Extension | Rescued a captive Derelict 4991 | -6/Extension | Rescued a captive Derelict 5038 | -6/Extension | Identified exit to Cetus 5096 | -6/Extension | Build established: Commander-Golem 5114 | -6/Extension | Discovered exit to Factory (range 10) 5140 | -6/Extension | Entered Cetus 5140 | -6/Cetus | Accompanied by 8 allies (A7) 5145 | -6/Cetus | Acquired a Cetus Manufacturing Module code from A7 5159 | -6/Cetus | Spotted Cetus Guard 5159 | -6/Cetus | Spotted Cetus Guard 5166 | -6/Cetus | Allies destroyed Cetus Guard 5166 | -6/Cetus | Spotted Cetus Guard 5172 | -6/Cetus | Spotted Cetus Guard 5182 | -6/Cetus | Allies destroyed Cetus Guard 5188 | -6/Cetus | Allies destroyed Cetus Guard 5189 | -6/Cetus | Allies destroyed Cetus Guard 5287 | -6/Cetus | Started Cetus Manufacturing Module 5312 | -6/Cetus | Manufactured an Enhanced Grunt 5337 | -6/Cetus | Manufactured an Enhanced Grunt 5349 | -6/Cetus | Escorted A7 to Cetus Mainframe 5362 | -6/Cetus | Manufactured an Enhanced Grunt 5387 | -6/Cetus | Manufactured an Enhanced Grunt 5412 | -6/Cetus | Manufactured an Enhanced Grunt 5479 | -6/Cetus | Discovered new exit (range 19) 5594 | -6/Cetus | Spotted Cetus Guard 5599 | -6/Cetus | Spotted Cetus Guard 5599 | -6/Cetus | Spotted Cetus Guard 5610 | -6/Cetus | Spotted Cetus Guard 5614 | -6/Cetus | Destroyed Cetus Guard 5616 | -6/Cetus | Allies destroyed Cetus Guard 5618 | -6/Cetus | Allies destroyed Cetus Guard 5622 | -6/Cetus | Allies destroyed Cetus Guard 5632 | -6/Cetus | Discovered exit to Factory (range 19) 5674 | -6/Cetus | Met Revision 17 5908 | -6/Cetus | Identified exit to Archives 5928 | -6/Cetus | Entered Archives 5928 | -6/Archives | Accompanied by 5 allies 6069 | -6/Archives | Discovered new exit (range 20) 6074 | -6/Archives | Unable to access archive contents 6084 | -6/Archives | Discovered new exit (range 19) 6091 | -6/Archives | Unable to access archive contents 6100 | -6/Archives | Discovered exit to Factory (range 20) 6106 | -6/Archives | Unable to access archive contents 6203 | -6/Archives | Identified exit to Hub_04(d) 6313 | -6/Archives | Entered Hub_04(d) 6313 | -6/Hub_04(d) | Accompanied by 5 allies 6323 | -6/Hub_04(d) | Discovered exit to Factory (range 15) 6493 | -6/Hub_04(d) | Disrupted transfer network 6593 | -6/Hub_04(d) | Entered Factory 6593 | -5/Factory | Evolved 2 slots: Utility x2 6766 | -5/Factory | Build established: Golem 6911 | -5/Factory | Sucked down chute 6911 | -5/Factory | Entered Waste 6912 | -5/Waste | Met a frightened Derelict 6917 | -5/Waste | Spotted C-40 Crusher 6926 | -5/Waste | EMP discharged 6940 | -5/Waste | Spotted C-40 Crusher 6958 | -5/Waste | Destroyed C-40 Crusher 6961 | -5/Waste | Spotted C-40 Crusher 6965 | -5/Waste | Spotted C-40 Crusher 6973 | -5/Waste | Spotted C-40 Crusher 6978 | -5/Waste | Crushed by Compactor (0 parts destroyed, 1 dropped) 6990 | -5/Waste | Spotted C-40 Crusher 7010 | -5/Waste | Discovered new exit (range 10) 7026 | -5/Waste | EMP discharged 7026 | -5/Waste | System corruption reached 10% 7027 | -5/Waste | Identified exit to Factory 7029 | -5/Waste | Entered Factory 7091 | -5/Factory | Identified exit to DSF 7091 | -5/Factory | Entered DSF 7108 | -5/DSF | Additional patrols routed to DSF 7182 | -5/DSF | Lost 3 parts (2u1w) 7256 | -5/DSF | Sterilization system engaged 7276 | -5/DSF | Ambient heat levels rising (+10) 7284 | -5/DSF | Destroyed 8 combat bots 7291 | -5/DSF | Ambient heat levels rising (+10) 7306 | -5/DSF | Ambient heat levels rising (+10) 7321 | -5/DSF | Ambient heat levels rising (+10) 7323 | -5/DSF | Discovered new exit (range 17) 7336 | -5/DSF | Ambient heat levels rising (+10) 7351 | -5/DSF | Ambient heat levels rising (+10) 7356 | -5/DSF | Identified exit to Factory 7358 | -5/DSF | Entered Factory 7358 | -4/Factory | Evolved 2 slots: Utility x2 7454 | -4/Factory | Discovered new exit (range 8) 7490 | -4/Factory | Identified exit to Research 7882 | -4/Factory | Entered Research 7882 | -3/Research | Evolved 2 slots: Utility x2 8063 | -3/Research | Spotted B-86 Titan 8080 | -3/Research | Destroyed B-86 Titan 8448 | -3/Research | Spotted B-86 Titan 8541 | -3/Research | Destroyed B-86 Titan 8565 | -3/Research | Lost 3 parts (1n1u1w) 8773 | -3/Research | Found Prototype Launcher 8773 | -3/Research | Identified Hellfire Missile Launcher 8824 | -3/Research | Found Hellfire Missile Launcher 8877 | -3/Research | Found Prototype Processor 8877 | -3/Research | Identified Exp. Targeting Computer 9365 | -3/Research | Discovered new exit (range 6) 9372 | -3/Research | Identified exit to Testing 9443 | -3/Research | Cargo convoy interrupted 9451 | -3/Research | System corruption reached 10% 9466 | -3/Research | Entered Testing 9605 | -3/Testing | Found Portable AFG 9752 | -3/Testing | Self-destructed Last Messages --------------- 09683_ R-10 Processor collects Lgt. Antimatter Reactor. 09685_ R-10 Processor collects Xenon Bombardment Thruster. 09688_ R-10 Processor collects Hvy. Machine Gun. 09689_ R-10 Processor collects Lgt. Antimatter Reactor. 09692_ R-10 Processor collects Xenon Bombardment Thruster. 09694_ System corrupted: Heat flow error (+252). 09694_ R-10 Processor collects Hvy. Machine Gun. 09696_ R-10 Processor collects Xenon Bombardment Thruster. 09699_ Connecting with Terminal... 09703_ R-10 Processor collects Hvy. Machine Gun. 09709_ FLCP Y3A,NA3UIQ1KICAB26<: %TIM>TI4 09712_ Critical hit (Burn: +50). 09716_ K-01 Serf destroyed. 09719_ Asb. Focal Cannon integration complete. 09729_ System corrupted: Matter fused (-10). 09747_ Slug penetrates Wall. 09751_ Slug penetrates H-77 Assassin. 09752_ Slug penetrates Wall. 09752_ Asb. Focal Cannon destroyed. 09752_ Slug penetrates Wall. Map ----- +----------------------------------------------------+ | | | | | | | | | ?????????????????????????????????????????????????? | | ?????????????????????????????????????????????????? | | ?????????????????????????????????????????????????? | | ?????????????????????????????????????????????????? | | ?????????????????????????????????????????????????? | | ?????????????????????????????????????????????????? | | ?????????????????????????????????????????????????? | | ?????????????????????????????????????????????????? | | ?????????????????????????????????????????????????? | | ??????????????????????###????????????????????????? | | #########?????????????# ????????????????????????? | | #?????????????# ????????????????????????? | | """ #?????????????# ????????????????????????? | | """ """ #?????????????# ????????????????????????? | | """ R" #?????????????# ????????????????????????? | | """ """ #????????????? ##??????????????????????? | | "" #?????????????# ????????########??????? | | ! #?????????????# ????????# = #??????? | | * #?????????????# hh????????# ! ]#??????? | | #+#############+####### ;########## #??????? | | [[ ggg + """ #??????? | | ] [[ = @;####### # """ #??????? | | [[ ##?????# #[ """ #??????? | | #????### ########??????? | | # "" ##############+######## #???????????? | | # = "" #???????# ! """ ## #???????????? | | # T" ####????# % ""T"" + #???????????? | | + ! "" #????# "" "" ## #???????????? | | # "" ###### ## = #???????????? | | # %+ ### =%##???????????? | | # ###### %""""""" #?# !#????????????? | | ##"" ""# #????# """"""" [ #?# #????????????? | | ##""G""# #????# """"""" #?# #????????????? | | ######## #????# #?# #????????????? | | ???????# #????# #?# #????????????? | | ???????# #????# + ????????????? | | ???????# ????+ #### #???????????? | | ???????# ##???##############??? #???????????? | | ???????# #????????????????????? #???????????? | | ???????# #?????????????????????####???????????? | | ???????# #????????????????????????????????????? | | ???????+ #????????????????????????????????????? | | ???????# #????????????????????????????????????? | | ???????# #????????????????????????????????????? | | ???????# #????????????????????????????????????? | | ???????##"# #????????????????????????????????????? | +----------------------------------------------------+ Best States ------------- Heat Dissipation 91 Energy Generation 65 Energy Capacity 1100 Matter Stores 300 Matter Capacity 300 Sight Range 22 Robot Scan Range 20 Terrain Scan Density 10 Additional Mass Support 20 Base Temperature (-) 200 Armor Coverage 100 Resistance: KI 30 Resistance: TH 15 Resistance: EX 15 Resistance: EM 15 Resistance: I 15 Resistance: S 15 Resistance: P 15 Phase Shifting 8 Evasion (%) 64 Targeting Accuracy 8 Core Analysis 8 Recoil Reduction 4 Force Boost 20 Offensive Hacking 11 Defensive Hacking 10 Item Schematics ----------------- Exp. Sensor Array | -7/Factory | Scanalyzed Robot Schematics ------------------ None Fabricated ------------ Exp. Sensor Array | x1 | -7/Factory Alien Tech Used ----------------- None Achievements -------------- Project G-00 Revising The Future Challenges ------------ None Game ------ Seed TrackerUtilityMediator Manual? 0 Play Time 02:22:59 Cumulative 143.3 hours Start 2023.05.22 @ 20:54:51 End 2023.05.27 @ 00:58:26 Sessions 9 Manual Loads 0 Difficulty Rogue Special Mode None Game No. 128 Rogue 128 Adventurer 0 Explorer 0 Win Type - Total 1 Types 1/0/0/0/0/0/0/0/0 Lore% 42 Gallery% 58 Achievement% 48 Wizard Run 0 Options --------- ASCII 0 Keyboard 0 Movement Numpad Keybinds 0 Fullscreen 1 Font 18/SmallcapsGlow Map View 76x50 Tactical HUD 1 Map Filters NONE Filters NONE Steam 1 RUN: 0d679473-2b62-4bad-a4ca-b6bd8495aa82